fUST/lending_fUST_20260511
["ID","MTS","AMOUNT","RATE_DAILY","PERIOD"]
[422029365,1778494232000,-41.50075883,9.999e-05,2]
[422029361,1778494232000,-203.68782992,9.999e-05,2]
[422029414,1778494238000,-17749.11520079,0.0001,2]
[422029422,1778494240000,-325.7699083,0.00010431,2]
[422029423,1778494240000,-341.76329859,0.00010431,2]
[422029420,1778494240000,-160.0,0.0001,2]
[422029421,1778494240000,-340.36583286,0.00010215,2]
[422029419,1778494240000,-68.49862548,0.0001,2]
[422029432,1778494243000,-5000.0,9.9e-05,2]
[422029434,1778494243000,-500.0,0.00010957,2]
[422029433,1778494243000,-116.24950051,0.00010431,2]
[422029465,1778494244000,-500.0,0.00010958,2]
[422029455,1778494244000,-500.0,0.00010958,2]
[422029456,1778494244000,-500.0,0.00010958,2]
[422029459,1778494244000,-500.0,0.00010958,2]
[422029457,1778494244000,-500.0,0.00010958,2]
[422029454,1778494244000,-500.0,0.00010958,2]
[422029458,1778494244000,-500.0,0.00010958,2]
[422029460,1778494244000,-500.0,0.00010958,2]
[422029461,1778494244000,-500.0,0.00010958,2]
[422029468,1778494244000,-500.0,0.00010958,2]
[422029462,1778494244000,-318.77,0.00010958,2]
[422029464,1778494244000,-500.0,0.00010958,2]
[422029463,1778494244000,-500.0,0.00010958,2]
[422029467,1778494244000,-500.0,0.00010958,2]
[422029469,1778494244000,-500.0,0.00010958,2]
[422029453,1778494244000,-500.0,0.00010958,2]
[422029448,1778494244000,-500.0,0.00010958,2]
[422029442,1778494244000,-158.47480132,0.00010957,2]
[422029451,1778494244000,-500.0,0.00010958,2]
[422029466,1778494244000,-500.0,0.00010958,2]
[422029438,1778494244000,-500.0,0.00010957,2]
[422029435,1778494244000,-500.0,0.00010957,2]
[422029436,1778494244000,-232.96963344,0.00010957,2]
[422029439,1778494244000,-500.0,0.00010957,2]
[422029437,1778494244000,-320.92975109,0.00010957,2]
[422029440,1778494244000,-500.0,0.00010957,2]
[422029441,1778494244000,-500.0,0.00010957,2]
[422029444,1778494244000,-500.0,0.00010958,2]
[422029443,1778494244000,-921.561,0.00010958,2]
[422029447,1778494244000,-500.0,0.00010958,2]
[422029449,1778494244000,-152.0,0.00010958,2]
[422029450,1778494244000,-500.0,0.00010958,2]
[422029446,1778494244000,-500.0,0.00010958,2]
[422029445,1778494244000,-500.0,0.00010958,2]
[422029452,1778494244000,-500.0,0.00010958,2]
[422029471,1778494244000,-454.60377705,0.00010958,2]
[422029493,1778494244000,-500.0,0.00010958,2]
[422029472,1778494244000,-500.0,0.00010958,2]
[422029492,1778494244000,-500.0,0.00010958,2]
[422029494,1778494244000,-500.0,0.00010958,2]
[422029497,1778494244000,-500.0,0.00010958,2]
[422029470,1778494244000,-500.0,0.00010958,2]
[422029500,1778494244000,-563.08,0.00010958,2]
[422029495,1778494244000,-500.0,0.00010958,2]
[422029490,1778494244000,-500.0,0.00010958,2]
[422029499,1778494244000,-240.50389499,0.00010958,2]
[422029496,1778494244000,-500.0,0.00010958,2]
[422029501,1778494244000,-500.0,0.00010958,2]
[422029504,1778494244000,-500.0,0.00010958,2]
[422029503,1778494244000,-769.39,0.00010958,2]
[422029505,1778494244000,-500.0,0.00010958,2]
[422029507,1778494244000,-413.41943611,0.00010958,2]
[422029502,1778494244000,-429.33,0.00010958,2]
[422029487,1778494244000,-500.0,0.00010958,2]
[422029498,1778494244000,-791.28,0.00010958,2]
[422029486,1778494244000,-1098.05,0.00010958,2]
[422029473,1778494244000,-500.0,0.00010958,2]
[422029475,1778494244000,-714.17,0.00010958,2]
[422029491,1778494244000,-680.21,0.00010958,2]
[422029479,1778494244000,-500.0,0.00010958,2]
[422029476,1778494244000,-500.0,0.00010958,2]
[422029478,1778494244000,-500.0,0.00010958,2]
[422029474,1778494244000,-500.0,0.00010958,2]
[422029477,1778494244000,-500.0,0.00010958,2]
[422029506,1778494244000,-500.0,0.00010958,2]
[422029481,1778494244000,-1207.2,0.00010958,2]
[422029483,1778494244000,-500.0,0.00010958,2]
[422029482,1778494244000,-642.26,0.00010958,2]
[422029485,1778494244000,-500.0,0.00010958,2]
[422029484,1778494244000,-5661.35,0.00010958,2]
[422029488,1778494244000,-170.88972258,0.00010958,2]
[422029489,1778494244000,-500.0,0.00010958,2]
[422029480,1778494244000,-500.0,0.00010958,2]
[422029513,1778494248000,-1441.25,0.00010958,2]
[422029514,1778494248000,-500.0,0.00010958,2]
[422029515,1778494248000,-554.82,0.00010958,2]
[422029518,1778494248000,-500.0,0.00010958,2]
[422029521,1778494248000,-500.0,0.00010958,2]
[422029519,1778494248000,-500.0,0.00010958,2]
[422029516,1778494248000,-500.0,0.00010958,2]
[422029520,1778494248000,-500.0,0.00010958,2]
[422029522,1778494248000,-51.88611271,0.00010958,2]
[422029517,1778494248000,-1157.67,0.00010958,2]
[422029512,1778494248000,-86.58056389,0.00010958,2]
[422029536,1778494906000,1000.0,1e-05,2]
[422029535,1778494906000,1000.0,1e-05,2]
[422029538,1778494907000,1000.0,1e-05,2]
[422029539,1778494907000,0.94455825,1e-05,2]
[422029537,1778494907000,1000.0,1e-05,2]
[422029570,1778495432000,-1163.26236751,4.915e-05,2]
[422029580,1778495432000,-859.11990399,4.915e-05,2]
[422029567,1778495432000,-1117.43519046,4.915e-05,2]
[422029578,1778495432000,-714.0746569,4.915e-05,2]
[422029658,1778495440000,-804.66381772,4.915e-05,2]
[422029657,1778495440000,-341.44406342,4.915e-05,2]
[422029660,1778495440000,-165.848715,5.11e-05,2]
[422029661,1778495440000,-165.848715,5.812e-05,2]
[422029662,1778495440000,-165.848715,6.513e-05,2]
[422029663,1778495440000,-240.41138459,6.965e-05,2]
[422029664,1778495440000,-165.848715,7.215e-05,2]
[422029659,1778495440000,-203.73846152,4.965e-05,2]
[422029666,1778495440000,-165.03023863,8.617e-05,2]
[422029668,1778495440000,-277.08430766,8.965e-05,2]
[422029669,1778495440000,-165.848715,9.319e-05,2]
[422029667,1778495440000,-0.81847637,8.617e-05,2]
[422029670,1778495440000,-456.3999724,9.606e-05,2]
[422029672,1778495440000,-160.0,0.0001,2]
[422029673,1778495440000,-398.98003415,0.0001,2]
[422029671,1778495440000,-1200.0,9.999e-05,2]
[422029665,1778495440000,-165.848715,7.916e-05,2]
[422029694,1778495441000,-1957.856,0.00010738,2]
[422029696,1778495441000,-557.5788265,0.00010793,2]
[422029692,1778495441000,-151.0,0.00010738,2]
[422029693,1778495441000,-537.6845,0.00010738,2]
[422029699,1778495441000,-599.60298507,0.00010903,2]
[422029701,1778495441000,-500.0,0.00010957,2]
[422029702,1778495441000,-239.83053348,0.00010957,2]
[422029709,1778495441000,-1754.0341415,0.00010958,2]
[422029703,1778495441000,-224.65287164,0.00010957,2]
[422029704,1778495441000,-621.78829552,0.00010958,2]
[422029705,1778495441000,-44344.39726526,0.00010958,2]
[422029710,1778495441000,-500.0,0.00010958,2]
[422029706,1778495441000,-5675.56544906,0.00010958,2]
[422029708,1778495441000,-1429.4493,0.00010958,2]
[422029707,1778495441000,-5709.85408208,0.00010958,2]
[422029700,1778495441000,-155.0,0.00010957,2]
[422029697,1778495441000,-578.20924308,0.00010848,2]
[422029676,1778495441000,-2488.81950007,0.00010137,2]
[422029688,1778495441000,-36.2150797,0.00010429,2]
[422029674,1778495441000,-165.848715,0.0001002,2]
[422029675,1778495441000,-622.82770272,0.00010137,2]
[422029677,1778495441000,-300.0,0.00010424,2]
[422029686,1778495441000,-456.3999724,0.00010429,2]
[422029687,1778495441000,-115.7094047,0.00010429,2]
[422029683,1778495441000,-314.17020558,0.00010428,2]
[422029678,1778495441000,-300.0,0.00010424,2]
[422029711,1778495441000,-500.0,0.00010958,2]
[422029682,1778495441000,-170.28482802,0.00010428,2]
[422029679,1778495441000,-300.0,0.00010424,2]
[422029684,1778495441000,-325.805033,0.00010429,2]
[422029680,1778495441000,-300.0,0.00010424,2]
[422029685,1778495441000,-456.3999724,0.00010429,2]
[422029681,1778495441000,-151.0,0.00010428,2]
[422029689,1778495441000,-325.805033,0.00010429,2]
[422029691,1778495441000,-162.380719,0.00010738,2]
[422029698,1778495441000,-161.01232938,0.00010858,2]
[422029690,1778495441000,-537.6845,0.00010738,2]
[422029714,1778495441000,-500.0,0.00010958,2]
[422029695,1778495441000,-151.54046827,0.00010738,2]
[422029715,1778495441000,-500.0,0.00010958,2]
[422029735,1778495441000,-478.90321676,0.00010958,2]
[422029734,1778495441000,-2153.13,0.00010958,2]
[422029736,1778495441000,-500.0,0.00010958,2]
[422029739,1778495441000,-508.71021993,0.00010958,2]
[422029737,1778495441000,-500.0,0.00010958,2]
[422029738,1778495441000,-457.89072622,0.00010958,2]
[422029742,1778495441000,-500.0,0.00010958,2]
[422029732,1778495441000,-2153.13,0.00010958,2]
[422029744,1778495441000,-583.90980718,0.00010958,2]
[422029746,1778495441000,-500.0,0.00010958,2]
[422029749,1778495441000,-500.0,0.00010958,2]
[422029748,1778495441000,-500.0,0.00010958,2]
[422029751,1778495441000,-500.0,0.00010958,2]
[422029750,1778495441000,-500.0,0.00010958,2]
[422029743,1778495441000,-500.0,0.00010958,2]
[422029712,1778495441000,-500.0,0.00010958,2]
[422029745,1778495441000,-500.0,0.00010958,2]
[422029733,1778495441000,-2153.13,0.00010958,2]
[422029747,1778495441000,-500.0,0.00010958,2]
[422029730,1778495441000,-2153.13,0.00010958,2]
[422029713,1778495441000,-500.0,0.00010958,2]
[422029740,1778495441000,-500.0,0.00010958,2]
[422029716,1778495441000,-500.0,0.00010958,2]
[422029717,1778495441000,-500.0,0.00010958,2]
[422029726,1778495441000,-500.0,0.00010958,2]
[422029728,1778495441000,-500.0,0.00010958,2]
[422029724,1778495441000,-500.0,0.00010958,2]
[422029727,1778495441000,-500.0,0.00010958,2]
[422029725,1778495441000,-500.0,0.00010958,2]
[422029723,1778495441000,-1126.9481507,0.00010958,2]
[422029722,1778495441000,-500.0,0.00010958,2]
[422029721,1778495441000,-500.0,0.00010958,2]
[422029741,1778495441000,-500.0,0.00010958,2]
[422029720,1778495441000,-500.0,0.00010958,2]
[422029718,1778495441000,-500.0,0.00010958,2]
[422029731,1778495441000,-2153.13,0.00010958,2]
[422029719,1778495441000,-507.92,0.00010958,2]
[422029729,1778495441000,-2153.13,0.00010958,2]
[422029803,1778495442000,-554.86,0.00010958,2]
[422029802,1778495442000,-500.0,0.00010958,2]
[422029787,1778495442000,-295.88781655,0.00010958,2]
[422029788,1778495442000,-151.0,0.00010958,2]
[422029785,1778495442000,-500.0,0.00010958,2]
[422029784,1778495442000,-500.0,0.00010958,2]
[422029791,1778495442000,-500.0,0.00010958,2]
[422029783,1778495442000,-500.0,0.00010958,2]
[422029789,1778495442000,-500.0,0.00010958,2]
[422029804,1778495442000,-171.00723022,0.00010958,2]
[422029792,1778495442000,-500.0,0.00010958,2]
[422029786,1778495442000,-500.0,0.00010958,2]
[422029798,1778495442000,-500.0,0.00010958,2]
[422029805,1778495442000,-328.99276978,0.00010958,2]
[422029799,1778495442000,-500.0,0.00010958,2]
[422029797,1778495442000,-226.61350074,0.00010958,2]
[422029800,1778495442000,-576.09231449,0.00010958,2]
[422029795,1778495442000,-500.0,0.00010958,2]
[422029801,1778495442000,-500.0,0.00010958,2]
[422029793,1778495442000,-500.0,0.00010958,2]
[422029794,1778495442000,-500.0,0.00010958,2]
[422029806,1778495442000,-602.96,0.00010958,2]
[422029816,1778495442000,-500.0,0.00010958,2]
[422029808,1778495442000,-536.74573356,0.00010958,2]
[422029810,1778495442000,-500.0,0.00010958,2]
[422029812,1778495442000,-549.23,0.00010958,2]
[422029781,1778495442000,-500.0,0.00010958,2]
[422029796,1778495442000,-273.38649926,0.00010958,2]
[422029790,1778495442000,-500.0,0.00010958,2]
[422029759,1778495442000,-500.0,0.00010958,2]
[422029780,1778495442000,-500.0,0.00010958,2]
[422029807,1778495442000,-58.77426644,0.00010958,2]
[422029754,1778495442000,-500.0,0.00010958,2]
[422029753,1778495442000,-500.0,0.00010958,2]
[422029752,1778495442000,-609.75,0.00010958,2]
[422029756,1778495442000,-580.91,0.00010958,2]
[422029766,1778495442000,-500.0,0.00010958,2]
[422029755,1778495442000,-500.0,0.00010958,2]
[422029767,1778495442000,-648.31,0.00010958,2]
[422029762,1778495442000,-604.13,0.00010958,2]
[422029760,1778495442000,-500.0,0.00010958,2]
[422029764,1778495442000,-500.0,0.00010958,2]
[422029757,1778495442000,-500.0,0.00010958,2]
[422029758,1778495442000,-500.0,0.00010958,2]
[422029761,1778495442000,-500.0,0.00010958,2]
[422029765,1778495442000,-500.0,0.00010958,2]
[422029763,1778495442000,-500.0,0.00010958,2]
[422029768,1778495442000,-594.2,0.00010958,2]
[422029770,1778495442000,-500.0,0.00010958,2]
[422029771,1778495442000,-500.0,0.00010958,2]
[422029769,1778495442000,-500.0,0.00010958,2]
[422029774,1778495442000,-500.0,0.00010958,2]
[422029775,1778495442000,-500.0,0.00010958,2]
[422029772,1778495442000,-500.0,0.00010958,2]
[422029773,1778495442000,-500.0,0.00010958,2]
[422029776,1778495442000,-500.0,0.00010958,2]
[422029778,1778495442000,-500.0,0.00010958,2]
[422029779,1778495442000,-500.0,0.00010958,2]
[422029782,1778495442000,-500.0,0.00010958,2]
[422029811,1778495442000,-500.0,0.00010958,2]
[422029777,1778495442000,-500.0,0.00010958,2]
[422029813,1778495442000,-500.0,0.00010958,2]
[422029850,1778495442000,-551.11,0.00010958,2]
[422029848,1778495442000,-500.0,0.00010958,2]
[422029845,1778495442000,-500.0,0.00010958,2]
[422029849,1778495442000,-500.0,0.00010958,2]
[422029847,1778495442000,-621.36,0.00010958,2]
[422029844,1778495442000,-512.93,0.00010958,2]
[422029853,1778495442000,-500.0,0.00010958,2]
[422029852,1778495442000,-500.0,0.00010958,2]
[422029864,1778495442000,-500.0,0.00010958,2]
[422029865,1778495442000,-500.0,0.00010958,2]
[422029863,1778495442000,-500.0,0.00010958,2]
[422029856,1778495442000,-500.0,0.00010958,2]
[422029858,1778495442000,-500.0,0.00010958,2]
[422029861,1778495442000,-500.0,0.00010958,2]
[422029862,1778495442000,-500.0,0.00010958,2]
[422029854,1778495442000,-500.0,0.00010958,2]
[422029855,1778495442000,-500.0,0.00010958,2]
[422029860,1778495442000,-157.05,0.00010958,2]
[422029857,1778495442000,-500.0,0.00010958,2]
[422029866,1778495442000,-500.0,0.00010958,2]
[422029870,1778495442000,-532.28230712,0.00010958,2]
[422029868,1778495442000,-500.0,0.00010958,2]
[422029871,1778495442000,-500.0,0.00010958,2]
[422029872,1778495442000,-500.0,0.00010958,2]
[422029869,1778495442000,-500.0,0.00010958,2]
[422029873,1778495442000,-21757.9142963,0.00010958,2]
[422029809,1778495442000,-500.0,0.00010958,2]
[422029867,1778495442000,-299.82268912,0.00010958,2]
[422029846,1778495442000,-611.31,0.00010958,2]
[422029859,1778495442000,-500.0,0.00010958,2]
[422029851,1778495442000,-500.0,0.00010958,2]
[422029843,1778495442000,-500.0,0.00010958,2]
[422029814,1778495442000,-500.0,0.00010958,2]
[422029815,1778495442000,-553.87877266,0.00010958,2]
[422029817,1778495442000,-500.0,0.00010958,2]
[422029819,1778495442000,-500.0,0.00010958,2]
[422029820,1778495442000,-500.0,0.00010958,2]
[422029823,1778495442000,-309.47856746,0.00010958,2]
[422029824,1778495442000,-562.75,0.00010958,2]
[422029825,1778495442000,-500.0,0.00010958,2]
[422029822,1778495442000,-555.54,0.00010958,2]
[422029828,1778495442000,-500.0,0.00010958,2]
[422029818,1778495442000,-500.0,0.00010958,2]
[422029827,1778495442000,-500.0,0.00010958,2]
[422029826,1778495442000,-572.59,0.00010958,2]
[422029821,1778495442000,-500.0,0.00010958,2]
[422029829,1778495442000,-634.84,0.00010958,2]
[422029840,1778495442000,-500.0,0.00010958,2]
[422029830,1778495442000,-500.0,0.00010958,2]
[422029842,1778495442000,-500.0,0.00010958,2]
[422029839,1778495442000,-500.0,0.00010958,2]
[422029841,1778495442000,-500.0,0.00010958,2]
[422029837,1778495442000,-500.0,0.00010958,2]
[422029836,1778495442000,-500.0,0.00010958,2]
[422029835,1778495442000,-500.0,0.00010958,2]
[422029834,1778495442000,-500.0,0.00010958,2]
[422029832,1778495442000,-500.0,0.00010958,2]
[422029833,1778495442000,-500.0,0.00010958,2]
[422029831,1778495442000,-500.0,0.00010958,2]
[422029838,1778495442000,-500.0,0.00010958,2]
[422029896,1778495443000,-662.98,0.00010958,2]
[422029902,1778495443000,-500.0,0.00010958,2]
[422029894,1778495443000,-151.0,0.00010958,2]
[422029898,1778495443000,-500.0,0.00010958,2]
[422029897,1778495443000,-500.0,0.00010958,2]
[422029900,1778495443000,-500.0,0.00010958,2]
[422029901,1778495443000,-500.0,0.00010958,2]
[422029908,1778495443000,-500.0,0.00010958,2]
[422029912,1778495443000,-500.0,0.00010958,2]
[422029914,1778495443000,-500.0,0.00010958,2]
[422029909,1778495443000,-689.23,0.00010958,2]
[422029913,1778495443000,-500.0,0.00010958,2]
[422029904,1778495443000,-500.0,0.00010958,2]
[422029910,1778495443000,-500.0,0.00010958,2]
[422029911,1778495443000,-500.0,0.00010958,2]
[422029899,1778495443000,-500.0,0.00010958,2]
[422029905,1778495443000,-500.0,0.00010958,2]
[422029903,1778495443000,-5835.64,0.00010958,2]
[422029895,1778495443000,-151.0,0.00010958,2]
[422029890,1778495443000,-500.0,0.00010958,2]
[422029884,1778495443000,-151.0,0.00010958,2]
[422029906,1778495443000,-500.0,0.00010958,2]
[422029878,1778495443000,-500.0,0.00010958,2]
[422029875,1778495443000,-500.0,0.00010958,2]
[422029876,1778495443000,-500.0,0.00010958,2]
[422029874,1778495443000,-500.0,0.00010958,2]
[422029877,1778495443000,-500.0,0.00010958,2]
[422029880,1778495443000,-500.0,0.00010958,2]
[422029891,1778495443000,-755.63,0.00010958,2]
[422029893,1778495443000,-500.0,0.00010958,2]
[422029892,1778495443000,-1234.08,0.00010958,2]
[422029879,1778495443000,-500.0,0.00010958,2]
[422029882,1778495443000,-500.0,0.00010958,2]
[422029883,1778495443000,-500.0,0.00010958,2]
[422029888,1778495443000,-500.0,0.00010958,2]
[422029885,1778495443000,-151.0,0.00010958,2]
[422029886,1778495443000,-151.0,0.00010958,2]
[422029889,1778495443000,-500.0,0.00010958,2]
[422029887,1778495443000,-180.706517,0.00010958,2]
[422029881,1778495443000,-500.0,0.00010958,2]
[422029907,1778495443000,-1130.63,0.00010958,2]
[422029923,1778495443000,-500.0,0.00010958,2]
[422029926,1778495443000,-500.0,0.00010958,2]
[422029949,1778495443000,-218.83214232,0.00010958,2]
[422029951,1778495443000,-236.1325172,0.00010958,2]
[422029946,1778495443000,-281.16785768,0.00010958,2]
[422029944,1778495443000,-1223.18234232,0.00010958,2]
[422029978,1778495443000,-500.0,0.00010958,2]
[422029983,1778495443000,-500.0,0.00010958,2]
[422029980,1778495443000,-500.0,0.00010958,2]
[422029981,1778495443000,-500.0,0.00010958,2]
[422029982,1778495443000,-500.0,0.00010958,2]
[422029972,1778495443000,-500.0,0.00010958,2]
[422029970,1778495443000,-263.8674828,0.00010958,2]
[422029976,1778495443000,-500.0,0.00010958,2]
[422029974,1778495443000,-500.0,0.00010958,2]
[422029984,1778495443000,-500.0,0.00010958,2]
[422029989,1778495443000,-644.79446246,0.00011013,2]
[422029986,1778495443000,-313.75723073,0.00010965,2]
[422029988,1778495443000,-10009.13686696,0.00011,2]
[422029935,1778495443000,-500.0,0.00010958,2]
[422029991,1778495443000,-2153.13,0.00011083,2]
[422029936,1778495443000,-500.0,0.00010958,2]
[422029933,1778495443000,-1664.12,0.00010958,2]
[422029917,1778495443000,-500.0,0.00010958,2]
[422029915,1778495443000,-796.02,0.00010958,2]
[422029927,1778495443000,-500.0,0.00010958,2]
[422029918,1778495443000,-569.74,0.00010958,2]
[422029924,1778495443000,-500.0,0.00010958,2]
[422029919,1778495443000,-521.32,0.00010958,2]
[422029922,1778495443000,-500.0,0.00010958,2]
[422029920,1778495443000,-500.0,0.00010958,2]
[422029990,1778495443000,-450.46886404,0.00011068,2]
[422029921,1778495443000,-810.03,0.00010958,2]
[422029925,1778495443000,-500.0,0.00010958,2]
[422029929,1778495443000,-500.0,0.00010958,2]
[422029930,1778495443000,-721.7,0.00010958,2]
[422029931,1778495443000,-500.0,0.00010958,2]
[422029937,1778495443000,-27.47765768,0.00010958,2]
[422029928,1778495443000,-500.0,0.00010958,2]
[422029932,1778495443000,-502.91896782,0.00010958,2]
[422029934,1778495443000,-500.0,0.00010958,2]
[422029916,1778495443000,-500.0,0.00010958,2]
[422029993,1778495444000,-1493.00495675,0.00011098,2]
[422029992,1778495444000,-135.97675193,0.00011098,2]
[422030016,1778495447000,-2153.13,0.00011099,2]
[422030017,1778495447000,-398.74216189,0.000111,2]
[422030013,1778495447000,-351.11223967,0.00011099,2]
[422030011,1778495447000,-2153.13,0.00011099,2]
[422030014,1778495447000,-1802.01776033,0.00011099,2]
[422030015,1778495447000,-2153.13,0.00011099,2]
[422030012,1778495447000,-2153.13,0.00011099,2]
[422030010,1778495447000,-524.14829132,0.00011098,2]
[422030019,1778495635000,320.0,0.00019178,120]
[422030020,1778495669000,5000.0,0.00015562,120]
[422030021,1778496203000,1026.0,0.0001,10]
[422030027,1778496632000,-888.34205459,9.247e-05,2]
[422030059,1778496638000,-4993.79537641,9.34e-05,2]
[422030058,1778496638000,-1672.18393299,9.247e-05,2]
[422030070,1778496641000,-359.50100004,9.606e-05,2]
[422030068,1778496641000,-6.20462359,9.34e-05,2]
[422030069,1778496641000,-446.08205057,9.606e-05,2]
[422030114,1778496647000,-500.0,0.00010958,2]
[422030104,1778496647000,-500.0,0.00010958,2]
[422030102,1778496647000,-500.0,0.00010958,2]
[422030096,1778496647000,-537.6845,0.00010951,2]
[422030095,1778496647000,-160.0,0.00010642,2]
[422030099,1778496647000,-500.0,0.00010958,2]
[422030100,1778496647000,-500.0,0.00010958,2]
[422030098,1778496647000,-1879.32326087,0.00010958,2]
[422030101,1778496647000,-500.0,0.00010958,2]
[422030086,1778496647000,-394.41694939,9.606e-05,2]
[422030094,1778496647000,-300.0,0.00010409,2]
[422030093,1778496647000,-300.0,0.00010409,2]
[422030092,1778496647000,-300.0,0.00010409,2]
[422030091,1778496647000,-300.0,0.00010409,2]
[422030090,1778496647000,-1415.33754067,9.89e-05,2]
[422030088,1778496647000,-192.85572467,9.674e-05,2]
[422030089,1778496647000,-354.18857374,9.89e-05,2]
[422030087,1778496647000,-456.3999724,9.607e-05,2]
[422030103,1778496647000,-500.0,0.00010958,2]
[422030097,1778496647000,-289.11673913,0.00010958,2]
[422030105,1778496647000,-500.0,0.00010958,2]
[422030127,1778496647000,-656.19,0.00010958,2]
[422030109,1778496647000,-500.0,0.00010958,2]
[422030106,1778496647000,-500.0,0.00010958,2]
[422030117,1778496647000,-500.0,0.00010958,2]
[422030128,1778496647000,-5267.44,0.00010958,2]
[422030122,1778496647000,-500.0,0.00010958,2]
[422030125,1778496647000,-1214.85,0.00010958,2]
[422030126,1778496647000,-500.0,0.00010958,2]
[422030124,1778496647000,-747.99,0.00010958,2]
[422030123,1778496647000,-500.0,0.00010958,2]
[422030119,1778496647000,-500.0,0.00010958,2]
[422030120,1778496647000,-500.0,0.00010958,2]
[422030129,1778496647000,-276.78652987,0.00010958,2]
[422030116,1778496647000,-500.0,0.00010958,2]
[422030118,1778496647000,-500.0,0.00010958,2]
[422030110,1778496647000,-500.0,0.00010958,2]
[422030113,1778496647000,-500.0,0.00010958,2]
[422030112,1778496647000,-500.0,0.00010958,2]
[422030108,1778496647000,-500.0,0.00010958,2]
[422030111,1778496647000,-413.22,0.00010958,2]
[422030107,1778496647000,-500.0,0.00010958,2]
[422030115,1778496647000,-998.7961,0.00010958,2]
[422030121,1778496647000,-500.0,0.00010958,2]
[422030130,1778497254000,-587.81482829,4.77e-05,2]
[422030136,1778497532000,-167.273053,2.974e-05,2]
[422030140,1778497714000,311.98765851,0.0001,10]
[422030155,1778497832000,-910.94292366,4.491e-05,2]
[422030159,1778497832000,-605.52935036,4.536e-05,2]
[422030157,1778497832000,-65.30859963,4.536e-05,2]
[422030263,1778497839000,-864.0,6.312e-05,2]
[422030257,1778497839000,-300.0,5.115e-05,2]
[422030259,1778497839000,-600.0,5.216e-05,2]
[422030251,1778497839000,-300.0,5.115e-05,2]
[422030254,1778497839000,-300.0,5.115e-05,2]
[422030255,1778497839000,-300.0,5.115e-05,2]
[422030256,1778497839000,-300.0,5.115e-05,2]
[422030249,1778497839000,-300.0,5.115e-05,2]
[422030253,1778497839000,-300.0,5.115e-05,2]
[422030258,1778497839000,-300.0,5.115e-05,2]
[422030260,1778497839000,-1680.0,5.353e-05,2]
[422030252,1778497839000,-300.0,5.115e-05,2]
[422030250,1778497839000,-300.0,5.115e-05,2]
[422030245,1778497839000,-300.0,5.115e-05,2]
[422030234,1778497839000,-159.83,4.77e-05,2]
[422030246,1778497839000,-300.0,5.115e-05,2]
[422030233,1778497839000,-193.9389091,4.699e-05,2]
[422030232,1778497839000,-4329.16205001,4.536e-05,2]
[422030264,1778497839000,-228.84791274,6.699e-05,2]
[422030235,1778497839000,-1200.0,4.866e-05,2]
[422030236,1778497839000,-500.0,4.867e-05,2]
[422030237,1778497839000,-500.0,4.867e-05,2]
[422030242,1778497839000,-2716.83,5e-05,2]
[422030238,1778497839000,-300.0,4.998e-05,2]
[422030244,1778497839000,-300.0,5.115e-05,2]
[422030243,1778497839000,-167.2730587,5.067e-05,2]
[422030240,1778497839000,-300.0,4.998e-05,2]